bitfinex/quotes_BTCUSD_20250830
["timestamp","ask_amount","ask_price","bid_price","bid_amount"]
[1756569447275,4.55834202,109070.0,109060.0,0.1537276]
[1756569447477,4.4700457,109070.0,109060.0,0.1537276]
[1756569448047,0.18354516,109060.0,109050.0,0.07349]
[1756569448254,4.07352342,109060.0,109050.0,0.9293911]
[1756569448447,1.34256142,109060.0,109050.0,0.9293911]
[1756569448824,1.37014242,109060.0,109050.0,0.9293911]
[1756569450082,1.37014242,109060.0,109050.0,0.7757111]
[1756569450287,1.37014242,109060.0,109050.0,0.9293911]
[1756569452002,1.37014242,109060.0,109050.0,0.7757111]
[1756569452260,1.37014242,109060.0,109050.0,0.9293911]
[1756569452462,1.37940227,109060.0,109050.0,0.9293911]
[1756569452843,1.38137227,109060.0,109050.0,0.7757111]
[1756569453047,4.11233427,109060.0,109050.0,0.9293911]
[1756569453281,4.11233427,109060.0,109050.0,0.7757111]
[1756569453441,4.11233427,109060.0,109050.0,0.9293911]
[1756569453643,4.11233427,109060.0,109050.0,0.7706511]
[1756569453858,4.11233625,109060.0,109050.0,0.9243311]
[1756569454243,4.11233625,109060.0,109050.0,0.9294211]
[1756569454446,3.86318003,109060.0,109050.0,0.9294211]
[1756569454649,4.04656532,109060.0,109050.0,0.9294211]
[1756569454872,4.04856532,109060.0,109050.0,0.9294211]
[1756569455228,4.04756532,109060.0,109050.0,0.9294211]
[1756569455431,4.04956532,109060.0,109050.0,0.9294211]
[1756569455573,4.04856532,109060.0,109050.0,0.9294211]
[1756569455980,4.04956532,109060.0,109050.0,0.9294211]
[1756569457448,4.04957013,109060.0,109050.0,0.9294211]
[1756569459775,4.04760013,109060.0,109050.0,0.9294211]
[1756569460312,1.31663813,109060.0,109050.0,0.9294211]
[1756569461064,0.95459337,109060.0,109050.0,0.9294211]
[1756569462032,0.61064972,109060.0,109050.0,0.9294211]
[1756569462283,0.95459337,109060.0,109050.0,0.9294211]
[1756569462699,1.29853702,109060.0,109050.0,0.9294211]
[1756569464369,0.95459337,109060.0,109050.0,0.9294211]
[1756569464609,0.95459628,109060.0,109050.0,0.9294211]
[1756569466106,0.95459628,109060.0,109050.0,0.7757411]
[1756569466333,0.95459628,109060.0,109050.0,0.9293811]
[1756569466555,1.29853993,109060.0,109050.0,0.9293811]
[1756569468166,1.28133494,109060.0,109050.0,0.9293811]
[1756569468344,1.29855231,109060.0,109050.0,0.9293811]
[1756569470546,1.29855231,109060.0,109050.0,0.7757411]
[1756569470727,1.29855231,109060.0,109050.0,0.9293811]
[1756569472978,1.29856292,109060.0,109050.0,0.9293811]
[1756569473179,1.30054292,109060.0,109050.0,0.9293811]
[1756569473388,1.30054292,109060.0,109050.0,0.7757411]
[1756569473603,1.30054292,109060.0,109050.0,0.9293811]
[1756569475423,1.29856292,109060.0,109050.0,0.9293811]
[1756569476516,1.30054292,109060.0,109050.0,0.7736511]
[1756569476715,1.30054292,109060.0,109050.0,0.9242911]
[1756569477065,1.30054292,109060.0,109050.0,0.9272811]
[1756569477498,1.30054292,109060.0,109050.0,0.9292711]
[1756569479146,1.30054387,109060.0,109050.0,0.9292711]
[1756569481008,1.30054387,109060.0,109050.0,0.9242911]
[1756569481136,1.30054387,109060.0,109050.0,0.9272811]
[1756569481554,1.30054387,109060.0,109050.0,0.9292711]
[1756569482968,1.30054387,109060.0,109050.0,0.7756311]
[1756569483185,1.30054387,109060.0,109050.0,0.9292311]
[1756569484206,1.29856387,109060.0,109050.0,0.7756311]
[1756569484406,1.29856387,109060.0,109050.0,0.9292311]
[1756569485547,1.29856492,109060.0,109050.0,0.9292311]
[1756569486340,1.30054492,109060.0,109050.0,0.7706511]
[1756569486549,1.30054492,109060.0,109050.0,0.9242511]
[1756569487215,1.30054492,109060.0,109050.0,0.9272411]
[1756569487681,1.30054492,109060.0,109050.0,0.9292311]
[1756569488748,1.27687182,109060.0,109050.0,0.9292311]
[1756569488948,1.30054706,109060.0,109050.0,0.9292311]
[1756569489984,1.30054706,109060.0,109050.0,0.7756311]
[1756569490222,1.30054706,109060.0,109050.0,0.9292311]
[1756569491882,1.30054706,109060.0,109050.0,0.9242511]
[1756569493068,1.30054706,109060.0,109050.0,0.9272411]
[1756569494315,1.30054706,109060.0,109050.0,0.9292311]
[1756569494988,1.30054706,109060.0,109050.0,0.7756311]
[1756569495185,1.30054706,109060.0,109050.0,0.9292311]
[1756569497719,1.30054706,109060.0,109050.0,0.8587111]
[1756569498567,1.29856706,109060.0,109050.0,0.8587111]
[1756569499713,1.29857134,109060.0,109050.0,0.8587111]
[1756569500802,1.30055134,109060.0,109050.0,0.8587111]
[1756569502194,1.29857134,109060.0,109050.0,0.8587111]
[1756569502406,1.29857257,109060.0,109050.0,0.8587111]
[1756569503416,0.26674162,109060.0,109050.0,0.8587111]
[1756569503624,1.29857257,109060.0,109050.0,0.8587111]
[1756569508328,1.29857662,109060.0,109050.0,0.8587111]
[1756569510651,1.29857385,109060.0,109050.0,0.7051111]
[1756569510995,1.29857385,109060.0,109050.0,0.8586711]
[1756569514946,0.2667429,109060.0,109050.0,0.8586711]
[1756569515142,1.29857385,109060.0,109050.0,0.8586711]
[1756569520627,0.9546302,109060.0,109050.0,0.8586711]
[1756569520843,1.29857385,109060.0,109050.0,0.8586711]
[1756569521286,1.2813535,109060.0,109050.0,0.8586711]
[1756569521533,1.29857403,109060.0,109050.0,0.8586711]
[1756569522889,0.95463038,109060.0,109050.0,0.8586711]
[1756569523847,0.95163038,109060.0,109050.0,0.8586711]
[1756569524206,0.95263038,109060.0,109050.0,0.8586711]
[1756569524408,0.95263038,109060.0,109050.0,0.8586311]
[1756569524944,0.95463038,109060.0,109050.0,0.8586311]
[1756569525355,0.95263038,109060.0,109050.0,0.8586311]
[1756569525577,0.95263038,109060.0,109050.0,0.7051111]
[1756569525815,0.95163038,109060.0,109050.0,0.8586311]
[1756569530210,0.9317916,109060.0,109050.0,0.8586311]
[1756569530422,0.9317916,109060.0,109050.0,0.1586311]
[1756569530601,0.9317916,109060.0,109050.0,0.0051111]
[1756569530801,0.95161682,109060.0,109050.0,0.0051111]
[1756569531013,0.95161682,109060.0,109050.0,0.1586311]
[1756569532216,0.95160381,109060.0,109050.0,0.1586311]
[1756569533232,0.95160381,109060.0,109050.0,0.8586311]
[1756569539278,0.93439286,109060.0,109050.0,0.7051111]
[1756569539477,0.95160248,109060.0,109050.0,0.8585911]
[1756569541888,0.9343922,109060.0,109050.0,0.8585911]
[1756569542008,0.95160164,109060.0,109050.0,0.8585911]
[1756569542634,0.95160173,109060.0,109050.0,0.8585911]
[1756569542892,0.95160197,109060.0,109050.0,0.8585911]
[1756569545363,0.95160197,109060.0,109050.0,0.7051111]
[1756569545577,0.95160197,109060.0,109050.0,0.8585911]
[1756569545784,0.95160197,109060.0,109050.0,0.9291111]
[1756569545998,0.95160197,109060.0,109050.0,0.7756311]
[1756569546209,0.95356197,109060.0,109050.0,0.9291111]
[1756569547035,0.95356197,109060.0,109050.0,0.9290711]
[1756569547644,0.26567467,109060.0,109050.0,0.9290711]
[1756569547842,0.95356197,109060.0,109050.0,0.9290711]
[1756569548918,0.95356197,109060.0,109050.0,0.7756311]
[1756569549150,0.95356197,109060.0,109050.0,0.9290711]
[1756569552823,0.95357678,109060.0,109050.0,0.9290711]
[1756569553795,0.26568948,109060.0,109050.0,0.9290711]
[1756569554007,0.95357678,109060.0,109050.0,0.9290711]
[1756569554537,0.89293567,109060.0,109050.0,0.9290711]
[1756569554926,0.92051167,109060.0,109050.0,0.9290711]
[1756569557391,0.92954205,109060.0,109050.0,0.9290711]
[1756569563080,0.90196605,109060.0,109050.0,0.7756311]
[1756569563285,0.90196605,109060.0,109050.0,0.9270411]
[1756569563495,0.90196605,109060.0,109050.0,0.9546171]
[1756569563728,0.88030297,109060.0,109050.0,0.9567071]
[1756569563931,0.88676079,109060.0,109050.0,0.9567071]
[1756569566468,0.90398213,109060.0,109050.0,0.9567071]
[1756569568468,0.90398213,109060.0,109050.0,0.9291311]
[1756569572107,0.21609483,109060.0,109050.0,0.9291311]
[1756569572335,0.90398213,109060.0,109050.0,0.9291311]
[1756569573630,0.90398213,109060.0,109050.0,0.7736411]
[1756569573834,0.90398213,109060.0,109050.0,0.7706511]
[1756569574035,0.90398213,109060.0,109050.0,0.9240111]
[1756569574246,0.93155813,109060.0,109050.0,0.9240111]
[1756569574548,0.93155813,109060.0,109050.0,0.7706511]
[1756569574768,0.22099167,109060.0,109050.0,0.9293411]
[1756569575004,0.93256216,109060.0,109050.0,0.9293411]
[1756569575419,0.9325622,109060.0,109050.0,0.9293411]
[1756569575604,0.9345622,109060.0,109050.0,0.9293411]
[1756569576034,0.9315622,109060.0,109050.0,0.7759811]
[1756569576251,0.9335622,109060.0,109050.0,0.9293411]
[1756569576451,0.9345622,109060.0,109050.0,0.9293411]
[1756569576864,0.9345622,109060.0,109050.0,0.7759811]
[1756569577143,0.2466749,109060.0,109050.0,0.9293411]
[1756569577578,0.9345622,109060.0,109050.0,0.9293411]
[1756569581526,0.9325622,109060.0,109050.0,0.9293411]
[1756569582153,0.9335622,109060.0,109050.0,0.9293411]
[1756569582360,0.9315622,109060.0,109050.0,0.9293411]
[1756569582536,0.9325622,109060.0,109050.0,0.9293411]
[1756569582966,0.9315622,109060.0,109050.0,0.9293411]
[1756569585379,0.2436749,109060.0,109050.0,0.9293411]
[1756569585588,0.93156039,109060.0,109050.0,0.9293411]
[1756569589021,0.93156039,109060.0,109050.0,0.7054611]
[1756569589223,0.93156039,109060.0,109050.0,0.8588211]
[1756569591283,0.24367309,109060.0,109050.0,0.8588211]
[1756569591523,0.93156039,109060.0,109050.0,0.8588211]
[1756569592930,0.93156039,109060.0,109050.0,0.7054611]
[1756569593138,0.93156039,109060.0,109050.0,0.8588211]
[1756569593951,0.24367309,109060.0,109050.0,0.8588211]
[1756569594167,0.93156039,109060.0,109050.0,0.8588211]
[1756569596355,0.90787897,109060.0,109050.0,0.8588211]
[1756569596566,0.9315603,109060.0,109050.0,0.8588211]
[1756569596777,0.243673,109060.0,109050.0,0.8588211]
[1756569596997,0.9315603,109060.0,109050.0,0.8588211]
[1756569597449,0.9315603,109060.0,109050.0,1.91614363]
[1756569597450,0.01722279,109060.0,109050.0,1.91614363]
[1756569597669,1.55809751,109090.0,109070.0,0.18336802]
[1756569597930,1.74788901,109090.0,109080.0,0.23119189]
[1756569598153,1.74788901,109090.0,109080.0,0.41225166]
[1756569598154,1.56455405,109090.0,109080.0,0.41225166]
[1756569598372,1.92566751,109090.0,109080.0,0.53279867]
[1756569598593,1.90204116,109090.0,109080.0,0.53279867]
[1756569598801,2.42537602,109090.0,109080.0,0.37943867]
[1756569599006,2.08537602,109090.0,109080.0,1.23279867]
[1756569599272,1.74143237,109090.0,109080.0,1.23279867]
[1756569599488,1.74143237,109090.0,109080.0,0.89608701]
[1756569599705,2.08537602,109090.0,109080.0,1.18815069]
[1756569599931,2.76931967,109090.0,109080.0,1.09517068]
[1756569600183,2.77409967,109090.0,109080.0,1.10336]
[1756569600882,2.77409967,109090.0,109080.0,0.7]
[1756569600883,2.82495051,109090.0,109080.0,0.7]
[1756569601441,2.82585663,109090.0,109080.0,0.7]
[1756569601663,2.82785663,109090.0,109080.0,0.7]
[1756569601877,2.85334864,109090.0,109080.0,0.7]
[1756569602514,2.86769873,109090.0,109080.0,0.7]
[1756569602718,2.86869873,109090.0,109080.0,0.7]
[1756569603139,2.86869873,109090.0,109080.0,0.85492]
[1756569603339,2.95699505,109090.0,109080.0,0.85492]
[1756569604072,2.94264496,109090.0,109080.0,0.85492]
[1756569604508,3.09756496,109090.0,109080.0,0.7]
[1756569604903,0.18335166,109080.0,109070.0,0.7]
[1756569605112,0.89962514,109080.0,109070.0,0.85496]
[1756569605321,0.89962514,109080.0,109070.0,0.7]
[1756569605531,0.89962514,109080.0,109070.0,0.85496]
[1756569605955,0.89962514,109080.0,109070.0,0.85492]
[1756569606388,0.21183069,109080.0,109070.0,0.85492]
[1756569606603,0.89962411,109080.0,109070.0,0.85492]
[1756569606869,1.32792043,109080.0,109070.0,0.7]
[1756569607081,1.32792043,109080.0,109070.0,0.85492]
[1756569607298,1.32792105,109080.0,109070.0,0.85492]
[1756569607504,1.23962473,109080.0,109070.0,0.85492]
[1756569607718,1.23962473,109080.0,109070.0,0.15492]
[1756569609571,1.25679684,109080.0,109070.0,0.15492]
[1756569609964,1.25679716,109080.0,109070.0,0.15492]
[1756569610736,1.23953673,109080.0,109070.0,0.15492]
[1756569610962,0.18336847,109070.0,109060.0,0.07052]
[1756569611166,0.52338529,109060.0,109050.0,0.11591191]
[1756569611376,0.52338529,109060.0,109050.0,0.27284191]
[1756569611377,0.88658411,109060.0,109050.0,0.27284191]
[1756569611803,0.88658411,109060.0,109050.0,0.20072761]
[1756569612035,0.88445411,109060.0,109050.0,0.20072761]
[1756569612165,0.91203111,109060.0,109050.0,0.20072761]
[1756569612399,0.91203111,109060.0,109050.0,0.1619911]
[1756569612858,0.91203111,109060.0,109050.0,0.1639911]
[1756569614560,0.5701144,109060.0,109050.0,0.1639911]
[1756569614747,0.91401111,109060.0,109050.0,0.1639911]
[1756569617129,0.91401382,109060.0,109050.0,0.1639911]
[1756569617536,0.91401382,109060.0,109050.0,0.0091511]
[1756569617717,0.91203382,109060.0,109050.0,0.1639111]
[1756569618142,0.91401382,109060.0,109050.0,0.1609411]
[1756569618585,0.91401382,109060.0,109050.0,0.1638711]
[1756569621357,0.91401382,109060.0,109050.0,0.1588111]
[1756569621966,0.91401382,109060.0,109050.0,0.1568111]
[1756569622249,0.91501382,109060.0,109050.0,0.1548111]
[1756569623267,0.91501382,109060.0,109050.0,0.1580411]
[1756569623471,0.91401382,109060.0,109050.0,0.1580411]
[1756569623690,0.91401382,109060.0,109050.0,0.1548111]
[1756569624124,1.25791053,109060.0,109050.0,0.1548111]
[1756569624753,1.25791053,109060.0,109050.0,0.1568411]
[1756569624979,1.25791053,109060.0,109050.0,0.1600711]
[1756569625392,1.25593053,109060.0,109050.0,0.1600711]
[1756569627770,1.24073571,109060.0,109050.0,0.1600711]
[1756569627973,1.25791074,109060.0,109050.0,0.1600711]
[1756569628373,1.26435426,109060.0,109050.0,0.1600711]
[1756569628760,1.26436236,109060.0,109050.0,0.1600711]
[1756569632037,1.26436236,109060.0,109050.0,0.15917448]
[1756569633028,1.2841807,109060.0,109050.0,0.15391448]
[1756569633252,0.1834021,109050.0,109040.0,0.07052]
[1756569633491,0.91663171,109050.0,109040.0,0.22508753]
[1756569633949,0.94421171,109050.0,109040.0,0.22508753]
[1756569634417,0.94421171,109050.0,109040.0,0.22708753]
[1756569635027,0.94423903,109050.0,109040.0,0.22708753]
[1756569635489,1.28895699,109050.0,109040.0,0.22708753]
[1756569636271,1.28895699,109050.0,109040.0,0.22704753]
[1756569636704,1.28895699,109050.0,109040.0,0.07256753]
[1756569636907,1.28895699,109050.0,109040.0,0.22704753]
[1756569637081,1.28895699,109050.0,109040.0,0.07256753]
[1756569637285,0.94480861,109050.0,109040.0,0.22708753]
[1756569638179,0.94480861,109050.0,109040.0,0.07256753]
[1756569638312,0.94759861,109050.0,109040.0,0.22704753]
[1756569638515,1.63178011,109050.0,109040.0,0.22704753]
[1756569638718,1.63177366,109050.0,109040.0,0.22704753]
[1756569639635,1.62898366,109050.0,109040.0,0.22704753]
[1756569640984,1.62898039,109050.0,109040.0,0.22704753]
[1756569642292,1.69259428,109050.0,109040.0,0.22700753]
[1756569642493,1.69259428,109050.0,109040.0,0.00204753]
[1756569642683,1.69259428,109050.0,109040.0,0.15644753]
[1756569643184,1.63177039,109050.0,109040.0,0.15644753]
[1756569644368,4.36273239,109050.0,109040.0,0.00204753]
[1756569644558,4.36273239,109050.0,109040.0,0.15644753]
[1756569645166,4.36273239,109050.0,109040.0,0.00104753]
[1756569645375,4.36273239,109050.0,109040.0,4.753e-05]
[1756569645596,4.37937349,109050.0,109040.0,4.753e-05]
[1756569646394,4.5584615,109050.0,109040.0,4.753e-05]
[1756569646624,4.53373349,109050.0,109040.0,4.753e-05]
[1756569646843,4.5584615,109050.0,109040.0,4.753e-05]
[1756569648817,4.5583815,109050.0,109040.0,4.753e-05]
[1756569649461,4.53363537,109050.0,109040.0,4.753e-05]
[1756569651099,4.53359537,109050.0,109040.0,4.753e-05]
[1756569651294,4.55832338,109050.0,109040.0,4.753e-05]
[1756569651495,4.53359537,109050.0,109040.0,4.753e-05]
[1756569657228,4.51691427,109050.0,109040.0,4.753e-05]
[1756569657412,4.51708137,109050.0,109040.0,4.753e-05]
[1756569657612,4.36009137,109050.0,109040.0,4.753e-05]
[1756569658065,4.35810137,109050.0,109040.0,0.00495753]
[1756569658250,4.01386417,109050.0,109040.0,0.00495753]
[1756569658521,0.59442777,109050.0,109040.0,0.00495753]
[1756569658739,1.28290217,109050.0,109040.0,0.07551753]
[1756569659394,1.26308263,109050.0,109040.0,0.07551753]
[1756569659830,1.26308263,109050.0,109040.0,0.07781026]
[1756569660523,1.26308427,109050.0,109040.0,0.07781026]
[1756569661157,1.26308865,109050.0,109040.0,0.07781026]
[1756569661401,1.26273153,109050.0,109040.0,0.23197026]
[1756569661621,1.26273153,109050.0,109040.0,0.22967753]
[1756569662333,1.26273153,109050.0,109040.0,0.07551753]
[1756569662545,1.26273153,109050.0,109040.0,0.22967753]
[1756569662764,1.26273845,109050.0,109040.0,0.22967753]
[1756569663928,0.91867981,109050.0,109040.0,0.22967753]
[1756569664071,0.91867981,109050.0,109040.0,0.07551753]
[1756569664284,0.91867981,109050.0,109040.0,0.23193026]
[1756569664494,0.91867981,109050.0,109040.0,0.22963753]
[1756569666564,0.91867832,109050.0,109040.0,0.22963753]
[1756569667337,0.91867832,109050.0,109040.0,0.07551753]
[1756569667545,0.91867832,109050.0,109040.0,0.22959753]
[1756569668693,0.91867832,109050.0,109040.0,0.07551753]
[1756569669149,1.26273696,109050.0,109040.0,0.22955753]
[1756569669996,1.26273706,109050.0,109040.0,0.07551753]
[1756569670213,1.26273706,109050.0,109040.0,0.22955753]
[1756569670565,1.26273706,109050.0,109040.0,0.07551753]
[1756569670775,1.28452119,109050.0,109040.0,0.22951753]
[1756569671822,1.28452119,109050.0,109040.0,0.22460753]
[1756569673093,1.28452119,109050.0,109040.0,0.22951753]
[1756569673425,1.28254119,109050.0,109040.0,0.22951753]
[1756569673785,1.28254119,109050.0,109040.0,0.92951753]
[1756569673998,1.28254119,109050.0,109040.0,0.77551753]
[1756569674217,1.28452119,109050.0,109040.0,0.92947753]
[1756569677895,0.59640391,109050.0,109040.0,0.92943753]
[1756569678099,1.28452119,109050.0,109040.0,0.92943753]
[1756569678723,1.28254119,109050.0,109040.0,0.92943753]
[1756569680663,1.28254677,109050.0,109040.0,0.92943753]
[1756569681654,1.28254823,109050.0,109040.0,0.92943753]
[1756569683435,1.28455719,109050.0,109040.0,0.92943753]
[1756569684426,1.2845675,109050.0,109040.0,0.92943753]
[1756569685075,1.2825875,109050.0,109040.0,0.92943753]
[1756569687998,1.28259898,109050.0,109040.0,0.92943753]
[1756569689089,1.28263205,109050.0,109040.0,0.92943753]
[1756569691477,1.28461205,109050.0,109040.0,0.92943753]
[1756569691675,1.28462321,109050.0,109040.0,0.92943753]
[1756569692393,1.28462358,109050.0,109040.0,0.92943753]
[1756569693231,1.28462358,109050.0,109040.0,0.85887753]
[1756569693442,1.28264358,109050.0,109040.0,0.85887753]
[1756569693893,0.93857046,109050.0,109040.0,0.85887753]
[1756569695345,0.93857087,109050.0,109040.0,0.85887753]
[1756569695887,0.91082843,109050.0,109040.0,0.85887753]
[1756569696100,0.93840843,109050.0,109040.0,0.85887753]
[1756569700401,0.94038843,109050.0,109040.0,0.70495753]
[1756569700641,0.94038843,109050.0,109040.0,0.85863753]
[1756569700853,1.28446155,109050.0,109040.0,0.85863753]
[1756569701516,1.28446155,109050.0,109040.0,0.85570753]
[1756569701728,1.28446155,109050.0,109040.0,0.85372753]
[1756569702160,1.28446155,109050.0,109040.0,0.85905753]
[1756569702383,1.28446739,109050.0,109040.0,0.85905753]
[1756569703041,1.28446739,109050.0,109040.0,0.70537753]
[1756569703252,1.28446739,109050.0,109040.0,0.85909753]
[1756569703464,1.28248739,109050.0,109040.0,0.85909753]
[1756569704125,1.28446739,109050.0,109040.0,0.85909753]
[1756569705240,1.26724245,109050.0,109040.0,0.85909753]
[1756569708323,1.26526245,109050.0,109040.0,0.85909753]
[1756569708740,1.26724245,109050.0,109040.0,0.85909753]
[1756569713077,0.57909632,109050.0,109040.0,0.85909753]
[1756569713282,1.26724256,109050.0,109040.0,0.85909753]
[1756569713937,1.26526256,109050.0,109040.0,0.85909753]
[1756569716413,1.26526278,109050.0,109040.0,0.85909753]
[1756569716997,0.92118966,109050.0,109040.0,0.85909753]
[1756569719649,0.92118966,109050.0,109040.0,0.70537753]
[1756569720022,0.91472998,109050.0,109040.0,0.85901753]
[1756569720238,0.92118978,109050.0,109040.0,0.85901753]
[1756569720587,0.92316978,109050.0,109040.0,0.70537753]
[1756569720804,0.92316978,109050.0,109040.0,0.85901753]
[1756569721196,1.2672429,109050.0,109040.0,0.85901753]
[1756569721783,1.2672429,109050.0,109040.0,0.70537753]
[1756569721992,0.92316978,109050.0,109040.0,0.85901753]
[1756569722209,0.92118978,109050.0,109040.0,0.85901753]
[1756569722446,0.91472998,109050.0,109040.0,0.85901753]
[1756569722663,0.9211896,109050.0,109040.0,0.85901753]
[1756569723102,0.9211896,109050.0,109040.0,0.86001753]
[1756569724212,0.9211896,109050.0,109040.0,0.86101753]
[1756569727453,0.57711648,109050.0,109040.0,0.86101753]
[1756569727708,0.57711648,109050.0,109040.0,0.70737753]
[1756569727709,0.9211896,109050.0,109040.0,0.70737753]
[1756569727924,0.9211896,109050.0,109040.0,0.86101753]
[1756569728357,0.9211896,109050.0,109040.0,0.86001753]
[1756569728774,0.9211896,109050.0,109040.0,0.86101753]
[1756569729201,0.9211896,109050.0,109040.0,0.86001753]
[1756569729430,0.9211896,109050.0,109040.0,0.85901753]
[1756569729637,0.9211896,109050.0,109040.0,0.86001753]
[1756569729638,0.57711648,109050.0,109040.0,0.86001753]
[1756569729856,0.57711648,109050.0,109040.0,1.11001753]
[1756569730079,0.9211896,109050.0,109040.0,1.10901753]
[1756569730317,0.9211896,109050.0,109040.0,1.11101753]
[1756569730548,0.9211896,109050.0,109040.0,1.11201753]
[1756569732913,0.92118799,109050.0,109040.0,1.11201753]
[1756569737217,0.57711487,109050.0,109040.0,1.11201753]
[1756569737425,0.89360799,109050.0,109040.0,1.20499754]
[1756569738554,0.87377079,109050.0,109040.0,1.20499754]
[1756569740567,0.86731278,109050.0,109040.0,1.20499754]
[1756569740771,0.87376789,109050.0,109040.0,1.20499754]
[1756569741129,0.86731278,109050.0,109040.0,1.20499754]
[1756569745343,0.86731278,109050.0,109040.0,1.05135754]
[1756569745648,0.86731278,109050.0,109040.0,1.20495754]
[1756569747784,0.86926278,109050.0,109040.0,1.20495754]
[1756569748007,0.86926278,109050.0,109040.0,1.05135754]
[1756569748250,0.86926278,109050.0,109040.0,1.20495754]
[1756569748560,0.86731278,109050.0,109040.0,1.20495754]
[1756569749263,0.86731278,109050.0,109040.0,1.23253354]
[1756569754197,0.52323966,109050.0,109040.0,1.23253354]
[1756569754456,0.86731278,109050.0,109040.0,1.23253354]
[1756569755591,0.86731278,109050.0,109040.0,1.30305354]
[1756569762356,0.52323966,109050.0,109040.0,1.48647246]
[1756569762704,0.86731278,109050.0,109040.0,1.48647246]
[1756569763644,0.86731278,109050.0,109040.0,1.48447246]
[1756569764246,0.86731278,109050.0,109040.0,1.48347246]
[1756569764454,0.52323966,109050.0,109040.0,1.48347246]
[1756569764670,0.52323966,109050.0,109040.0,1.48547246]
[1756569764875,0.52323966,109050.0,109040.0,1.48747246]
[1756569766063,0.86731278,109050.0,109040.0,1.48747246]
[1756569766397,0.52323966,109050.0,109040.0,1.48747246]
[1756569766712,0.86731278,109050.0,109040.0,1.48747246]
[1756569767354,0.86731278,109050.0,109040.0,1.30405354]
[1756569767969,0.52747522,109050.0,109040.0,1.30405354]
[1756569768389,0.1834021,109050.0,109040.0,1.48747246]
[1756569768594,0.52747522,109050.0,109040.0,1.48747246]
[1756569772890,0.52747522,109050.0,109040.0,1.30405354]
[1756569773103,0.86747522,109050.0,109040.0,1.30405354]
[1756569779453,0.86747522,109050.0,109040.0,1.48747246]
[1756569779679,0.5234021,109050.0,109040.0,1.48747246]
[1756569779878,0.86747522,109050.0,109040.0,1.48747246]
[1756569780662,0.21096229,109060.0,109050.0,0.1834021]
[1756569781064,0.55096229,109060.0,109050.0,1.13515211]
[1756569781248,0.52338529,109060.0,109050.0,0.98155211]
[1756569781404,0.53661001,109070.0,109050.0,1.52777805]
[1756569781405,0.22010989,109070.0,109050.0,1.52777805]
[1756569781623,0.22010989,109070.0,109060.0,0.50594761]
[1756569781624,0.56146993,109070.0,109060.0,0.50594761]
[1756569781850,0.86744159,109070.0,109060.0,1.24804351]
[1756569782211,0.52336847,109070.0,109060.0,1.27561451]
[1756569782415,0.86942159,109070.0,109060.0,0.93341922]
[1756569782624,0.86942159,109070.0,109060.0,1.08713922]
[1756569782854,0.86942159,109070.0,109060.0,1.34226922]
[1756569783462,0.86744159,109070.0,109060.0,1.34226922]
[1756569783617,0.86744159,109070.0,109060.0,1.34326922]
[1756569784497,0.86744159,109070.0,109060.0,1.34426922]
[1756569784847,0.52534847,109070.0,109060.0,1.14307101]
[1756569785064,1.21629471,109070.0,109060.0,1.203731]
[1756569785266,1.21629471,109070.0,109060.0,1.050091]
[1756569785642,1.21629471,109070.0,109060.0,1.1762]
[1756569785840,1.21629471,109070.0,109060.0,0.9262]
[1756569786023,1.21629471,109070.0,109060.0,0.92616]
[1756569786194,1.22273988,109070.0,109060.0,0.92616]
[1756569786810,1.25031388,109070.0,109060.0,0.92616]
[1756569788609,1.24751388,109070.0,109060.0,0.92616]
[1756569789223,1.25031388,109070.0,109060.0,0.92616]
[1756569789849,1.25031388,109070.0,109060.0,0.9262]
[1756569793099,1.00504272,109070.0,109060.0,0.9262]
[1756569793321,1.18844106,109070.0,109060.0,0.9262]
[1756569794697,1.18844106,109070.0,109060.0,0.77252]
[1756569794898,1.18844106,109070.0,109060.0,0.92616]
[1756569795332,2.18844106,109070.0,109060.0,0.92616]
[1756569795713,2.18844272,109070.0,109060.0,0.92616]
[1756569799176,2.18844345,109070.0,109060.0,0.92616]
[1756569802133,2.18844345,109070.0,109060.0,0.9294]
[1756569802353,1.50029721,109070.0,109060.0,0.93143]
[1756569802576,1.49831721,109070.0,109060.0,0.93143]
[1756569802788,1.49831809,109070.0,109060.0,0.93143]
[1756569802989,1.84239121,109070.0,109060.0,0.93143]
[1756569806377,1.84239281,109070.0,109060.0,0.93143]
[1756569807860,1.49831969,109070.0,109060.0,0.93143]
[1756569808280,1.84239281,109070.0,109060.0,0.93143]
[1756569808638,1.84437281,109070.0,109060.0,0.93143]
[1756569813054,1.83792277,109070.0,109060.0,0.93143]
[1756569813278,1.86420449,109070.0,109060.0,0.93143]
[1756569813490,1.84437627,109070.0,109060.0,0.93143]
[1756569813702,1.86420435,109070.0,109060.0,0.93143]
[1756569814125,1.86420435,109070.0,109060.0,0.93139]
[1756569814527,1.86420435,109070.0,109060.0,0.92612]
[1756569814693,2.20827747,109070.0,109060.0,0.92612]
[1756569816367,1.52013123,109070.0,109060.0,0.92612]
[1756569816586,2.20827747,109070.0,109060.0,0.92612]
[1756569816734,2.20828077,109070.0,109060.0,0.92612]
[1756569818426,2.20828815,109070.0,109060.0,0.92612]
[1756569819000,2.20828824,109070.0,109060.0,0.92612]
[1756569819769,2.21108824,109070.0,109060.0,0.92612]
[1756569820011,5.28612336,109070.0,109060.0,0.8556]
[1756569820196,4.94205024,109070.0,109060.0,0.8556]
[1756569822591,4.94205024,109070.0,109060.0,0.702]
[1756569822959,4.94205024,109070.0,109060.0,0.8556]
[1756569824314,4.92221478,109070.0,109060.0,0.8556]
[1756569824495,4.94203572,109070.0,109060.0,0.8556]
[1756569824695,4.93557883,109070.0,109060.0,0.8556]
[1756569824856,4.66113355,109070.0,109060.0,0.8556]
[1756569825056,4.66113355,109070.0,109060.0,0.84144714]
[1756569825781,5.00520667,109070.0,109060.0,0.84144714]
[1756569825987,5.00520667,109070.0,109060.0,0.84044714]
[1756569826356,5.00520667,109070.0,109060.0,0.83944714]
[1756569826774,4.99875464,109070.0,109060.0,0.83944714]
[1756569826972,5.34520571,109070.0,109060.0,0.83944714]
[1756569828991,5.34240571,109070.0,109060.0,0.83944714]
[1756569829214,4.99833259,109070.0,109060.0,0.83944714]
[1756569829441,2.26737059,109070.0,109060.0,0.83944714]
[1756569830589,2.61144371,109070.0,109060.0,0.83944714]
[1756569836550,2.60499264,109070.0,109060.0,0.83944714]
[1756569836757,2.61144236,109070.0,109060.0,0.83944714]
[1756569838462,2.61144236,109070.0,109060.0,0.68584714]
[1756569838605,2.61144236,109070.0,109060.0,0.83944714]
[1756569838776,2.61424236,109070.0,109060.0,0.83944714]
[1756569839393,2.61144236,109070.0,109060.0,0.83944714]
[1756569842801,2.61144236,109070.0,109060.0,0.84454714]
[1756569843244,2.61144236,109070.0,109060.0,0.83944714]
[1756569845091,2.61144236,109070.0,109060.0,0.68584714]
[1756569845293,2.61144236,109070.0,109060.0,0.83944714]
[1756569845495,2.60499264,109070.0,109060.0,0.83944714]
[1756569845703,2.61144552,109070.0,109060.0,0.83944714]
[1756569846948,5.57147418,109070.0,109060.0,0.83944714]
[1756569847578,5.41787418,109070.0,109060.0,0.83944714]
[1756569847788,5.57147418,109070.0,109060.0,0.83944714]